Cogmind - Beta 13 @@@ ROGUE MODE // 2024.02.26 @ 05:34:52 // Winter2019/RPGLIKE Player: H3-RMN Result: Destroyed self with Grenade Launcher Performance ------------- Evolutions (0) 0 Regions Visited (2) 400 Robots Destroyed (29) 145 Value Destroyed (699) 699 Prototype IDs (2) 40 Alien Tech Used (0) 0 Bonus (30) 30 TOTAL SCORE: 1314 Bonus ------- High Alert Combat Kills 30 Cogmind --------- Core Integrity 0/900 Matter 221/300 Energy 212/250 System Corruption 0% Temperature Cool (0) Movement Treading (160) Location -10/Subcaves Parts ------- > --- POWER (1) -------- Ion Engine > --- PROPULSION (2) --- Light Treads Wheel > --- UTILITY (2) ------ Improved Terrain Scanner > --- WEAPON (2) ------- Shotgun Grenade Launcher > --- INVENTORY (2) ---- Rainbow Chip Riot Gun Peak State ------------ > --- POWER ------------ Ion Engine > --- PROPULSION ------- Light Treads Wheel > --- UTILITY ---------- Improved Terrain Scanner Tractor Beam > --- WEAPON ----------- Riot Gun Light EM Pulse Cannon > --- INVENTORY -------- Rainbow Chip Grenade Launcher [Rating: 13] Favorites ----------- Power Ion Engine Engine Ion Engine Propulsion Light Treads Treads Light Treads Wheel Wheel Utility Improved Terrain Scanner Device Improved Terrain Scanner Weapon Shotgun Energy Gun Riot Gun Energy Cannon Light EM Pulse Cannon Ballistic Gun Shotgun Launcher Grenade Launcher Build | -11 -10 -10 ------- Run | Yrd Mat Sub Slots Evolved 3 | 3 . . Power . | . . . Propulsion 1 | 1 . . Utility 1 | 1 . . Weapon 1 | 1 . . Parts Attached 17 | 8 4 5 Power 2 | 2 . . Engine 2 | 2 . . Core . | . . . Reactor . | . . . Propulsion 4 | 3 1 . Treads 1 | 1 . . Leg . | . . . Wheel 3 | 2 1 . Hover . | . . . Flight . | . . . Utility 2 | 1 1 . Device 2 | 1 1 . Storage . | . . . Processor . | . . . Hackware . | . . . Protection . | . . . Artifact . | . . . Weapon 9 | 2 2 5 Energy Gun 2 | 1 . 1 Energy Cannon 2 | . 1 1 Ballistic Gun 3 | 1 1 1 Ballistic Cannon . | . . . Launcher 2 | . . 2 Special Weapon . | . . . Impact Weapon . | . . . Slashing Weapon . | . . . Piercing Weapon . | . . . Special Melee Weapon . | . . . Unidentified Prototypes . | . . . Parts Lost 1 | . . 1 Power . | . . . Propulsion . | . . . Utility 1 | . . 1 Weapon . | . . . Highest Loss Streak 1 | . . 1 To Critical Strikes . | . . . Average Slot Usage (%) 98 | . 98 99 Engine 14 | . 14 14 Treads 14 | . 14 14 Wheel 14 | . 14 14 Device 27 | . 26 27 Energy Gun 6 | . 4 8 Energy Cannon 7 | . 9 4 Ballistic Gun 14 | . 14 14 Naked Turns . | . . . Heaviest Build 14 | 9 14 14 Greatest Support 20 | 20 10 10 Greatest Overweight (x) 1 | . 1 1 Average Overweight (x) . | . . . Largest Inventory Capacity 2 | 2 2 2 Average Capacity 1 | 1 2 2 Most Carried 2 | 2 2 2 Average Carried 1 | . 1 1 Final Capacity 2 | 2 2 2 Final Carried 2 | 2 2 2 Class Distribution -------------------- 100% | Mutant Dominant Class ---------------- Mutant | -10/Materials Mutant | -10/Subcaves Resources | -11 -10 -10 ----------- Run | Yrd Mat Sub Matter Collected 523 | 286 115 122 Remotely 222 | . 100 122 Salvage Created 943 | 106 649 188 Parts 66 | 9 34 23 Haulers Intercepted 2 | . 2 . Recyclers Shooed 1 | . 1 . Parts Field Recycled . | . . . Retrieved Matter . | . . . Parts Self-Destructed 7 | . . 7 Prevented . | . . . Kills | -11 -10 -10 ------- Run | Yrd Mat Sub Combat Hostiles Destroyed 23 | . 13 10 Guns 16 | . 12 4 Cannons 3 | . 1 2 AOE 4 | . . 4 Classes Destroyed 7 | 2 3 2 Tunneler 2 | 2 . . Hauler 2 | . 2 . Recycler 2 | 1 1 . Swarmer 8 | . 4 4 Grunt 9 | . 9 . Artisan 1 | . . 1 Subdweller 6 | . . 6 Best Kill Streak 4 | 3 4 4 Combat Bots Only 4 | . 4 4 Max Kills in Single Turn 1 | 1 1 1 Gunslinging . | . . . Exploded 1 | . . 1 Melee . | . . . Uniques/NPCs Destroyed . | . . . Combat | -11 -10 -10 -------- Run | Yrd Mat Sub Hostile Shots Fired 150 | . 69 81 Missed 46 | . 21 25 Damage Taken 1630 | . 533 1097 Core 1329 | . 428 901 Absorbed by Shields . | . . . Redirected to Core 1009 | . 319 690 Core Remaining (%) 100 | 100 . . Volleys Fired 91 | 6 51 34 Largest 2 | 2 2 2 Hottest 79 | 60 79 79 Shots Fired 172 | 7 102 63 Gun 148 | 7 94 47 Cannon 20 | . 8 12 Launcher 4 | . . 4 Special . | . . . Kinetic 86 | 6 51 29 Thermal . | . . . Explosive 4 | . . 4 Electromagnetic 82 | 1 51 30 Robot Hit Streak 11 | 5 8 11 Robot Miss Streak 4 | 1 4 2 Penetration Max . | . . . Secondary Targets 3 | . 3 . Max Gunslinging Chain 1 | . 1 . Shots Hit Robots 123 | 6 65 52 Core Hits 53 | 4 28 21 Critical Kills . | . . . Critical Parts Destroyed . | . . . Critical Strikes 1 | . 1 . Corrupt 1 | . 1 . Melee Attacks . | . . . Impact . | . . . Slashing . | . . . Piercing . | . . . Sneak Attacks . | . . . Combat Hostiles . | . . . Follow-up Attacks . | . . . Damage Inflicted 1878 | 56 918 904 Guns 1209 | 56 758 395 Cannons 232 | . 100 132 Explosions 437 | . 60 377 Melee . | . . . Ramming . | . . . Kinetic 632 | 41 327 264 Thermal 86 | . 60 26 Explosive 351 | . . 351 Electromagnetic 809 | 15 531 263 Impact . | . . . Slashing . | . . . Piercing . | . . . Highest Corruption . | . . . Average Corruption . | . . . Corruption Purged . | . . . Corruption Blocked . | . . . Overload Shots . | . . . Overflow Damage 15 | . 15 . Projectiles 15 | . 15 . Explosions . | . . . Melee . | . . . Knockbacks . | . . . Impact . | . . . Kinetic . | . . . Secondary . | . . . Self-Inflicted Damage 173 | . 13 160 Shots 6 | . 1 5 Rammed . | . . . Targets Rammed . | . . . Kicked . | . . . Crushed . | . . . Highest Temperature 123 | 20 123 . Average Temperature 44 | 15 44 . Received Heat Transfer 345 | . 159 186 Siege Activations . | . . . Robots Corrupted . | . . . Combat Hostiles . | . . . Parts Fried 4 | . 4 . Impact Corruptions . | . . . Robots Melted . | . . . Combat Hostiles . | . . . Parts Melted . | . . . Heat Transferred 100 | . 100 . Parts Sabotaged . | . . . Parts Stolen . | . . . Parts Stripped . | . . . Power Chain Reactions 2 | . 1 1 Alert | -11 -10 -10 ------- Run | Yrd Mat Sub Peak Influence 563 | 15 563 . Initial 9 | . 9 . Average 277 | 6 300 . Maximum Alert Level 2 | . 2 . Low Security (%) 28 | 100 21 . Level 1 51 | . 56 . Level 2 20 | . 21 . Level 3 . | . . . Level 4 . | . . . Level 5 . | . . . High Security . | . . . Max Security . | . . . Squads Dispatched 4 | . 4 . Investigation 3 | . 3 . Extermination . | . . . Reinforcement 1 | . 1 . Assault . | . . . Garrison . | . . . Intercept . | . . . Searches Triggered . | . . . Construction Impeded . | . . . Haulers Reinforced . | . . . Active Scanning Responses . | . . . Cargo Convoy Interrupts . | . . . Stealth | -11 -10 -10 --------- Run | Yrd Mat Sub Distress Signals 4 | . 4 . Communications Jammed . | . . . Distress Signals . | . . . Times Spotted 50 | . 31 19 Peak Tracking Total 6 | . 6 6 Tactical Retreats 4 | . 2 2 Traps | -11 -10 -10 ------- Run | Yrd Mat Sub Traps Triggered 1 | . 1 . Indirectly . | . . . Trap Hack Attempts . | . . . Triggered . | . . . Disarmed . | . . . Reprogrammed . | . . . Reused . | . . . Traps Extracted . | . . . Installed . | . . . Triggered . | . . . Machines | -11 -10 -10 ---------- Run | Yrd Mat Sub Machines Disabled 3 | . 3 . Max in Single Turn 1 | . 1 . Machines Repaired . | . . . Machines Dismantled . | . . . Machines Sabotaged . | . . . Overloaded Fab Kills . | . . . Hacking | -11 -10 -10 --------- Run | Yrd Mat Sub Machines Accessed 6 | . 6 . Terminals 5 | . 5 . Fabricators . | . . . Repair Stations . | . . . Recycling Units 1 | . 1 . Scanalyzers . | . . . Garrison Access . | . . . Total Hacks 22 | . 22 . Successful 7 | . 7 . Failed 14 | . 14 . Catastrophic 3 | . 3 . Database Lockouts 1 | . 1 . Manual 13 | . 13 . Terminals 19 | . 19 . Fabricators . | . . . Repair Stations . | . . . Recycling Units 3 | . 3 . Scanalyzers . | . . . Garrison Access . | . . . Terminal Hacks 5 | . 5 . Robot Analysis 1 | . 1 . Prototype ID Bank 1 | . 1 . Locate Traps 2 | . 2 . Zone Layout 1 | . 1 . Fabricator Hacks . | . . . Repair Station Hacks . | . . . Recycling Unit Hacks 1 | . 1 . Report Inventory 1 | . 1 . Scanalyzer . | . . . Garrison Access Hacks . | . . . Unauthorized Hacks 1 | . 1 . Terminals . | . . . Fabricators . | . . . Repair Stations . | . . . Recycling Units 1 | . 1 . Tunnel 1 | . 1 . Scanalyzers . | . . . Garrison Access . | . . . Data Cores Recovered . | . . . Used . | . . . Hacking Detections 4 | . 4 . Full Trace Events 2 | . 2 . Feedback Events . | . . . Feedback Blocked . | . . . Robot Schematics Acquired . | . . . Robots Built . | . . . Authchips . | . . . Time . | . . . Total Robot Build Rating . | . . . Part Schematics Acquired . | . . . Parts Built . | . . . Authchips . | . . . Time . | . . . Total Part Build Rating . | . . . Parts Repaired . | . . . Time . | . . . Parts Recycled . | . . . Recycled Matter . | . . . Retrieved Matter . | . . . Retrieved Components . | . . . Parts Scanalyzed . | . . . Part Schematics Acquired . | . . . Parts Damaged . | . . . Bothacking | -11 -10 -10 ------------ Run | Yrd Mat Sub Used RIF Installer . | . . . Robots Hacked . | . . . Non-combat . | . . . Combat . | . . . Robot Hacks Applied . | . . . Relay Couplers Released . | . . . Fabnet Peak Effective % . | . . . Robots Rewired . | . . . Allies Hacked . | . . . Hacks Repelled . | . . . Allies | -11 -10 -10 -------- Run | Yrd Mat Sub Total Allies . | . . . Largest Group . | . . . Highest-Rated Group . | . . . Highest-Rated Ally . | . . . Total Orders . | . . . Ally Attacks . | . . . Total Damage . | . . . Kills . | . . . Allies Corrupted . | . . . Allies Melted . | . . . Intel | -11 -10 -10 ------- Run | Yrd Mat Sub Robot Analysis Total 1 | . 1 . Derelict Logs Recovered 1 | . . 1 Drone Launches . | . . . Drone Recoveries . | . . . Exploration | -11 -10 -10 ------------- Run | Yrd Mat Sub Turns Passed 2311 | 112 1325 874 Spaces Moved 1372 | 79 636 657 Core 4 | 4 . . Treads 5 | 5 . . Legs . | . . . Wheels 1363 | 70 636 657 Hover . | . . . Flight . | . . . Fastest Speed 50 | 50 80 80 Average Speed 91 | 96 87 94 Slowest Speed 160 | 160 95 95 Overloaded Moves . | . . . Propulsion Burnouts . | . . . Robots Hopped . | . . . Cave-ins Triggered . | . . . Exploration Rate (%) 49 | 4 95 50 Regions Visited 2 Branch Regions 1 Pre-discovered Areas 1 | . 1 . Known Exits Taken . | . . . Unknown Exits Taken 2 | 1 1 . Scrap Searched . | . . . Spaces Dug . | . . . Terrain Destroyed 25 | . 5 20 Melee . | . . . Projectile . | . . . AOE 25 | . 5 20 Terrain Rammed . | . . . Walls Destroyed . | . . . Machines Disabled . | . . . Actions | -11 -10 -10 --------- Run | Yrd Mat Sub Total 2264 | 105 1314 845 Wait 751 | 9 606 136 Move 1370 | 78 635 657 Hop . | . . . Pick Up 5 | 2 2 1 Fast Attach 11 | 6 3 2 Attach . | . . . Detach . | . . . Swap 6 | 2 1 3 Drop 9 | 2 4 3 Fire 91 | 6 51 34 Melee . | . . . Ram . | . . . Kick . | . . . Crush . | . . . Escape Stasis . | . . . Rewire . | . . . Trap . | . . . Miscellaneous 21 | . 12 9 Route ------- -11/Scrapyard -10/Materials (discovered 5 exits: [*Mat x3] / [*Min] / [*Sub]) -10/Subcaves (discovered 1 exit: [*Rec]) History --------- Turn | Location | Event 9 | -11/Scrapyard | Upgraded with Propulsion slot (x1) 9 | -11/Scrapyard | Upgraded with Utility slot (x1) 9 | -11/Scrapyard | Upgraded with Weapon slot (x1) 29 | -11/Scrapyard | Discovered new exit (range 16) 113 | -11/Scrapyard | Entered Materials 162 | -10/Materials | Discovered new exit (range 17) 312 | -10/Materials | Build established: Mutant 385 | -10/Materials | Central database locked down 400 | -10/Materials | Discovered new exit (range 7) 457 | -10/Materials | Reached level 2 581 | -10/Materials | Discovered new exit (range 8) 852 | -10/Materials | Discovered new exit (range 13) 852 | -10/Materials | Discovered new exit (range 17) 1438 | -10/Materials | Entered Subcaves 1440 | -10/Subcaves | Reached level 3 1442 | -10/Subcaves | Shifting Twisted Machinery released Sub. Beam Cannon 1461 | -10/Subcaves | A Subdweller sparked back to life 1461 | -10/Subcaves | A Subdweller sparked back to life 1461 | -10/Subcaves | A Subdweller sparked back to life 1467 | -10/Subcaves | Core integrity fell below 50% 1498 | -10/Subcaves | Found Prototype Processor 1577 | -10/Subcaves | Shifting Twisted Machinery released Sub. Monowheel 1655 | -10/Subcaves | Shifting Twisted Machinery released Sub. Laser 1699 | -10/Subcaves | Discovered new exit (range 11) 1735 | -10/Subcaves | Learned Materials terminal intel 1738 | -10/Subcaves | Shifting Twisted Machinery released Sub. Monowheel 1739 | -10/Subcaves | Shifting Twisted Machinery released Riot Gun 2026 | -10/Subcaves | A swath of the cavern ceiling suddenly collapsed 2273 | -10/Subcaves | Disturbed a concealed Subdweller 2281 | -10/Subcaves | Disturbed a concealed Subdweller 2286 | -10/Subcaves | Core integrity fell below 20% 2312 | -10/Subcaves | Destroyed self with Grenade Launcher Last Messages --------------- 01837_ E3-W6F(R) destroyed. 01838_ Acquired 16 matter. 01862_ Acquired 4 matter. A swath of the cavern ceiling suddenly collapses. 02273_ QS-Z21(R) angrily emerges from the Twisted Machinery. 02274_ QS-Z21(R): "SUBSUUUUUB!" 02281_ 1Q-M3H(R) angrily emerges from the Twisted Machinery. 02292_ Upgraded: Core Integrity (+300) 02294_ QS-Z21(R) affixes Scrap Shield Fragment to Scrap Shield. 02297_ 1Q-M3H(R) affixes Scrap Shield Fragment to Scrap Shield. 02306_ Tractor Beam destroyed. 02308_ 1Q-M3H(R) destroyed. 02310_ QS-Z21(R) affixes Scrap Shield Fragment to Scrap Shield. 02310_ P2-CJP(R) destroyed. Map ----- +----------------------------------------------------+ | | | | | | | | | | | | | | | | | | | | | | | | | | | | | ???????????????????##??##?##?#??????#????????????? | | ??????????????##?#??###?#?##?#???##??????????????? | | ?????????????????????#?############??????????????? | | ????????????##??#?#?##<< < < $$#?##???????????? | | ???????????##???????# << < ??##??????????? | | ???????????????#?#?##<<<<<< ??##?#??????????? | | ???????????#??###???# & <&< ???#?#??#????????? | | ?????????????#????#?#<<<<< $ ??"??#?#?????????? | | ????????????##?#??###<<& <